fUSD/lending_fUSD_20260217
["ID","MTS","AMOUNT","RATE_DAILY","PERIOD"]
[405785850,1771308631549,-500.0,7.599e-05,2]
[405785851,1771308631559,-500.0,7.599e-05,2]
[405785852,1771308631569,-500.0,7.599e-05,2]
[405785853,1771308631579,-500.0,7.599e-05,2]
[405785854,1771308631589,-500.0,7.599e-05,2]
[405785855,1771308631599,-358.13449287,7.599e-05,2]
[405785857,1771308631623,-141.86550713,7.599e-05,2]
[405785858,1771308631632,-173.46516931,7.599e-05,2]
[405785859,1771308631642,-97.44660425,7.599e-05,2]
[405785860,1771308631653,-402.55339575,7.599e-05,2]
[405785861,1771308631662,-94.99888516,7.599e-05,2]
[405785862,1771308631672,-405.00111484,7.599e-05,2]
[405785863,1771308631680,-500.0,7.599e-05,2]
[405785864,1771308631689,-803874.32088852,7.6e-05,2]
[405785865,1771308631700,-92281.47760151,7.6e-05,2]
[405785866,1771308631711,-90469.50263154,7.6e-05,2]
[405785867,1771308631722,-259514.89554611,7.6e-05,2]
[405785868,1771308631732,-1254.41808677,7.6e-05,2]
[405785869,1771308631743,-405.23147994,7.6e-05,2]
[405785870,1771308631755,-710.0,7.6e-05,2]
[405785871,1771308631769,-584.79955105,7.6e-05,2]
[405785872,1771308631780,-3811.13458738,7.6e-05,2]
[405785873,1771308631791,-387.105,7.6e-05,2]
[405785874,1771308633971,558.07,7.367e-05,2]
[405785875,1771308637925,-151.0,7.597e-05,2]
[405785876,1771308637934,-1192.44849106,7.6e-05,2]
[405785877,1771308637946,-2245514.66613612,7.6e-05,2]
[405785878,1771308637956,-1029.34351084,7.631e-05,2]
[405785879,1771308637966,-227.20890356,7.631e-05,2]
[405785880,1771308637975,-4730.31505708,7.631e-05,2]
[405785881,1771308637985,-665.78,7.9e-05,2]
[405785882,1771308637994,-2635.94,7.9e-05,2]
[405785883,1771308638005,-1114.11,7.9e-05,2]
[405785884,1771308638014,-685.45,7.9e-05,2]
[405785885,1771308638024,-2582.66,7.9e-05,2]
[405785886,1771308638034,-1035.07,7.9e-05,2]
[405785887,1771308638044,-8717.517405,7.945e-05,2]
[405785888,1771308638054,-289.76203498,8.023e-05,2]
[405785889,1771308638063,-4999.99,8.023e-05,2]
[405785890,1771308638073,-999.99,8.023e-05,2]
[405785891,1771308638083,-1542.1,8.023e-05,2]
[405785892,1771308638093,-9999.99,8.023e-05,2]
[405785893,1771308638102,-5914.98,8.023e-05,2]
[405785894,1771308638112,-299.99,8.023e-05,2]
[405785895,1771308638123,-29124.47,8.023e-05,2]
[405785896,1771308638132,-7136.18,8.023e-05,2]
[405785897,1771308638142,-349.65,8.023e-05,2]
[405785898,1771308638152,-150.99,8.023e-05,2]
[405785899,1771308638163,-96057.45,8.023e-05,2]
[405785900,1771308638173,-1184.93,8.023e-05,2]
[405785901,1771308638183,-311.5,8.023e-05,2]
[405785902,1771308638193,-2984.7,8.023e-05,2]
[405785903,1771308638203,-150.99,8.023e-05,2]
[405785904,1771308638213,-81423.96,8.023e-05,2]
[405785905,1771308638229,-515.68,8.023e-05,2]
[405785906,1771308638239,-1473.32,8.023e-05,2]
[405785907,1771308638249,-9999.99,8.023e-05,2]
[405785908,1771308638260,-9999.99,8.023e-05,2]
[405785909,1771308638270,-499.99,8.023e-05,2]
[405785910,1771308638279,-9999.99,8.023e-05,2]
[405785911,1771308638290,-14638.92,8.023e-05,2]
[405785912,1771308638300,-446.0,8.032e-05,2]
[405785913,1771308638310,-207.0,8.054e-05,2]
[405785914,1771308638320,-1459.0,8.07e-05,2]
[405785915,1771308638331,-150.0,8.1e-05,2]
[405785916,1771308638342,-150.0,8.1e-05,2]
[405785917,1771308638352,-150.0,8.1e-05,2]
[405785918,1771308638363,-150.0,8.1e-05,2]
[405785919,1771308638373,-150.0,8.1e-05,2]
[405785920,1771308638383,-9150.74,8.16e-05,2]
[405785921,1771308638394,-445.546946,8.178e-05,2]
[405785922,1771308638404,-500.0,8.219e-05,2]
[405785923,1771308638414,-500.0,8.219e-05,2]
[405785924,1771308638424,-208.12545411,8.219e-05,2]
[405785925,1771308638434,-150.0,8.219e-05,2]
[405785926,1771308638444,-500.0,8.219e-05,2]
[405785927,1771308638454,-500.0,8.219e-05,2]
[405785928,1771308638464,-150.0,8.219e-05,2]
[405785929,1771308638474,-500.0,8.219e-05,2]
[405785930,1771308638484,-500.0,8.219e-05,2]
[405785931,1771308638494,-150.0,8.219e-05,2]
[405785932,1771308638504,-500.0,8.219e-05,2]
[405785933,1771308638514,-500.0,8.219e-05,2]
[405785934,1771308638524,-150.0,8.219e-05,2]
[405785935,1771308638534,-466.0,8.219e-05,2]
[405785936,1771308638544,-500.0,8.219e-05,2]
[405785937,1771308638554,-150.0,8.219e-05,2]
[405785938,1771308638564,-500.0,8.219e-05,2]
[405785939,1771308638578,-500.0,8.219e-05,2]
[405785940,1771308638588,-237.28842339,8.219e-05,2]
[405785941,1771308638597,-500.0,8.219e-05,2]
[405785942,1771308638608,-500.0,8.219e-05,2]
[405785943,1771308638618,-500.0,8.219e-05,2]
[405785944,1771308638628,-872.0,8.219e-05,2]
[405785945,1771308638638,-154.86539372,8.219e-05,2]
[405785946,1771308638648,-4242.0,8.219e-05,2]
[405785947,1771308638659,-500.0,8.219e-05,2]
[405785948,1771308638669,-500.0,8.219e-05,2]
[405785949,1771308638679,-500.0,8.219e-05,2]
[405785950,1771308638689,-500.0,8.219e-05,2]
[405785951,1771308638699,-500.0,8.219e-05,2]
[405785952,1771308638709,-500.0,8.219e-05,2]
[405785953,1771308638719,-500.0,8.219e-05,2]
[405785954,1771308638729,-150.31509327,8.219e-05,2]
[405785955,1771308638739,-500.0,8.219e-05,2]
[405785956,1771308638749,-500.0,8.219e-05,2]
[405785957,1771308638759,-596.0,8.219e-05,2]
[405785958,1771308638770,-150.0,8.219e-05,2]
[405785959,1771308638779,-500.0,8.219e-05,2]
[405785960,1771308638793,-166.421882,8.219e-05,2]
[405785961,1771308638803,-500.0,8.219e-05,2]
[405785962,1771308638814,-152.72,8.219e-05,2]
[405785963,1771308638823,-4193.06,8.219e-05,2]
[405785964,1771308638834,-151.2254874,8.274e-05,2]
[405785965,1771308638844,-500.0,8.274e-05,2]
[405785966,1771308638854,-500.0,8.274e-05,2]
[405785967,1771308638864,-150.07216309,8.274e-05,2]
[405785968,1771308638874,-500.0,8.274e-05,2]
[405785969,1771308638884,-502.16866536,8.274e-05,2]
[405785970,1771308638894,-500.0,8.274e-05,2]
[405785971,1771308638904,-500.0,8.274e-05,2]
[405785972,1771308638914,-466.0,8.274e-05,2]
[405785973,1771308638925,-500.0,8.274e-05,2]
[405785974,1771308638937,-500.0,8.274e-05,2]
[405785975,1771308638947,-500.0,8.274e-05,2]
[405785976,1771308638958,-500.0,8.274e-05,2]
[405785977,1771308638968,-500.0,8.274e-05,2]
[405785978,1771308638982,-500.0,8.274e-05,2]
[405785979,1771308638992,-872.0,8.274e-05,2]
[405785980,1771308639003,-4242.0,8.274e-05,2]
[405785981,1771308639013,-500.0,8.274e-05,2]
[405785982,1771308639025,-500.0,8.274e-05,2]
[405785983,1771308639035,-500.0,8.274e-05,2]
[405785984,1771308639046,-500.0,8.274e-05,2]
[405785985,1771308639056,-500.87477363,8.274e-05,2]
[405785986,1771308639066,-500.0,8.274e-05,2]
[405785987,1771308639076,-500.0,8.274e-05,2]
[405785988,1771308639085,-500.0,8.274e-05,2]
[405785989,1771308639095,-500.0,8.274e-05,2]
[405785990,1771308639105,-596.0,8.274e-05,2]
[405785991,1771308639115,-150.0,8.274e-05,2]
[405785992,1771308639126,-500.0,8.274e-05,2]
[405785993,1771308639136,-250.0,8.276e-05,2]
[405785994,1771308639146,-150.0,8.292e-05,2]
[405785995,1771308639156,-252.266366,8.292e-05,2]
[405785996,1771308639166,-354.532733,8.292e-05,2]
[405785997,1771308639176,-456.7991,8.292e-05,2]
[405785998,1771308639186,-559.065466,8.292e-05,2]
[405785999,1771308639196,-661.331833,8.292e-05,2]
[405786000,1771308639207,-763.5982,8.292e-05,2]
[405786001,1771308639218,-865.864566,8.292e-05,2]
[405786002,1771308639229,-968.130933,8.292e-05,2]
[405786003,1771308639239,-1070.3973,8.292e-05,2]
[405786004,1771308639248,-250.0,8.301e-05,2]
[405786005,1771308639258,-10709.18,8.304e-05,2]
[405786006,1771308639268,-151.0,8.305e-05,2]
[405786007,1771308639278,-338577.21,8.308e-05,2]
[405786008,1771308639287,-281.0,8.315e-05,2]
[405786009,1771308639297,-500.0,8.329e-05,2]
[405786010,1771308639307,-500.0,8.329e-05,2]
[405786011,1771308639316,-500.0,8.329e-05,2]
[405786012,1771308639326,-500.0,8.329e-05,2]
[405786013,1771308639336,-500.0,8.329e-05,2]
[405786014,1771308639346,-466.0,8.329e-05,2]
[405786015,1771308639356,-500.0,8.329e-05,2]
[405786016,1771308639378,-500.0,8.329e-05,2]
[405786017,1771308639390,-220.15883999,8.329e-05,2]
[405786018,1771308639401,-500.0,8.329e-05,2]
[405786019,1771308639412,-500.0,8.329e-05,2]
[405786020,1771308639422,-500.0,8.329e-05,2]
[405786021,1771308639432,-872.0,8.329e-05,2]
[405786023,1771308639442,-4242.0,8.329e-05,2]
[405786024,1771308639453,-500.0,8.329e-05,2]
[405786025,1771308639464,-500.0,8.329e-05,2]
[405786026,1771308639474,-500.0,8.329e-05,2]
[405786027,1771308639484,-154.49885719,8.329e-05,2]
[405786028,1771308639495,-500.0,8.329e-05,2]
[405786029,1771308639505,-500.0,8.329e-05,2]
[405786030,1771308639515,-500.0,8.329e-05,2]
[405786031,1771308639525,-616.5683879,8.329e-05,2]
[405786032,1771308639535,-596.0,8.329e-05,2]
[405786033,1771308639546,-201.09695119,8.329e-05,2]
[405786034,1771308639556,-500.0,8.329e-05,2]
[405786035,1771308639566,-251.0,8.358e-05,2]
[405786036,1771308639577,-420.0,8.358e-05,2]
[405786037,1771308639587,-1680.0,8.358e-05,2]
[405786038,1771308639597,-500.0,8.383e-05,2]
[405786039,1771308639607,-500.0,8.383e-05,2]
[405786040,1771308639618,-500.0,8.383e-05,2]
[405786041,1771308639628,-178.36591542,8.383e-05,2]
[405786042,1771308639638,-500.0,8.383e-05,2]
[405786043,1771308639648,-466.0,8.383e-05,2]
[405786044,1771308639658,-500.0,8.383e-05,2]
[405786045,1771308639668,-500.0,8.383e-05,2]
[405786046,1771308639678,-500.0,8.383e-05,2]
[405786047,1771308639688,-500.0,8.383e-05,2]
[405786048,1771308639698,-500.0,8.383e-05,2]
[405786049,1771308639709,-872.0,8.383e-05,2]
[405786050,1771308639720,-4242.0,8.383e-05,2]
[405786051,1771308639738,-500.0,8.383e-05,2]
[405786052,1771308639748,-187.36614029,8.383e-05,2]
[405786053,1771308639759,-500.0,8.383e-05,2]
[405786054,1771308639769,-500.0,8.383e-05,2]
[405786055,1771308639778,-500.0,8.383e-05,2]
[405786056,1771308639788,-500.0,8.383e-05,2]
[405786057,1771308639799,-596.0,8.383e-05,2]
[405786058,1771308639809,-500.0,8.383e-05,2]
[405786059,1771308639819,-1436.42437669,8.428e-05,2]
[405786060,1771308639830,-510.76125773,8.438e-05,2]
[405786061,1771308639840,-500.0,8.438e-05,2]
[405786062,1771308639850,-500.0,8.438e-05,2]
[405786063,1771308639860,-500.0,8.438e-05,2]
[405786064,1771308639871,-466.0,8.438e-05,2]
[405786065,1771308639881,-500.0,8.438e-05,2]
[405786066,1771308639891,-329.95129651,8.438e-05,2]
[405786067,1771308639901,-500.0,8.438e-05,2]
[405786068,1771308639911,-500.0,8.438e-05,2]
[405786069,1771308639932,-500.0,8.438e-05,2]
[405786070,1771308639942,-872.0,8.438e-05,2]
[405786071,1771308639953,-4242.0,8.438e-05,2]
[405786072,1771308639963,-500.0,8.438e-05,2]
[405786074,1771308639975,-500.0,8.438e-05,2]
[405786077,1771308639985,-500.0,8.438e-05,2]
[405786079,1771308639996,-500.0,8.438e-05,2]
[405786081,1771308640007,-500.0,8.438e-05,2]
[405786083,1771308640017,-596.0,8.438e-05,2]
[405786085,1771308640028,-500.0,8.438e-05,2]
[405786087,1771308640038,-20780.3,8.482e-05,2]
[405786089,1771308640048,-500.0,8.493e-05,2]
[405786091,1771308640058,-500.0,8.493e-05,2]
[405786093,1771308640069,-500.0,8.493e-05,2]
[405786095,1771308640079,-466.0,8.493e-05,2]
[405786097,1771308640089,-500.0,8.493e-05,2]
[405786099,1771308640099,-500.0,8.493e-05,2]
[405786101,1771308640110,-500.0,8.493e-05,2]
[405786103,1771308640120,-500.0,8.493e-05,2]
[405786105,1771308640130,-872.0,8.493e-05,2]
[405786107,1771308640141,-4242.0,8.493e-05,2]
[405786109,1771308640152,-500.0,8.493e-05,2]
[405786111,1771308640162,-500.0,8.493e-05,2]
[405786114,1771308640176,-500.0,8.493e-05,2]
[405786116,1771308640187,-500.0,8.493e-05,2]
[405786117,1771308640196,-500.0,8.493e-05,2]
[405786118,1771308640206,-596.0,8.493e-05,2]
[405786119,1771308640217,-500.33776257,8.493e-05,2]
[405786120,1771308640227,-500.0,8.493e-05,2]
[405786121,1771308640237,-500.0,8.548e-05,2]
[405786122,1771308640247,-500.0,8.548e-05,2]
[405786123,1771308640258,-621.12228144,8.548e-05,2]
[405786124,1771308640268,-466.0,8.548e-05,2]
[405786125,1771308640283,-500.0,8.548e-05,2]
[405786126,1771308640294,-500.0,8.548e-05,2]
[405786127,1771308640304,-500.0,8.548e-05,2]
[405786128,1771308640315,-475.49905426,8.548e-05,2]
[405786129,1771308640325,-872.0,8.548e-05,2]
[405786130,1771308640335,-4242.0,8.548e-05,2]
[405786131,1771308640345,-500.0,8.548e-05,2]
[405786132,1771308640356,-500.0,8.548e-05,2]
[405786133,1771308640366,-500.0,8.548e-05,2]
[405786134,1771308640376,-500.0,8.548e-05,2]
[405786135,1771308640386,-500.0,8.548e-05,2]
[405786136,1771308640396,-596.0,8.548e-05,2]
[405786137,1771308640407,-477.0,8.559e-05,2]
[405786138,1771308640417,-236.0,8.576e-05,2]
[405786139,1771308640427,-423.0,8.593e-05,2]
[405786140,1771308640437,-500.0,8.603e-05,2]
[405786141,1771308640448,-500.0,8.603e-05,2]
[405786142,1771308640458,-466.0,8.603e-05,2]
[405786143,1771308640469,-500.0,8.603e-05,2]
[405786144,1771308640479,-500.0,8.603e-05,2]
[405786145,1771308640490,-500.0,8.603e-05,2]
[405786146,1771308640500,-872.0,8.603e-05,2]
[405786147,1771308640510,-4242.0,8.603e-05,2]
[405786148,1771308640521,-500.0,8.603e-05,2]
[405786149,1771308640532,-500.0,8.603e-05,2]
[405786150,1771308640542,-500.0,8.603e-05,2]
[405786151,1771308640552,-500.0,8.603e-05,2]
[405786152,1771308640563,-500.0,8.603e-05,2]
[405786153,1771308640573,-596.0,8.603e-05,2]
[405786154,1771308640583,-500.0,8.657e-05,2]
[405786155,1771308640593,-500.0,8.657e-05,2]
[405786156,1771308640603,-466.0,8.657e-05,2]
[405786157,1771308640614,-500.0,8.657e-05,2]
[405786158,1771308640624,-500.0,8.657e-05,2]
[405786159,1771308640638,-500.0,8.657e-05,2]
[405786160,1771308640649,-872.0,8.657e-05,2]
[405786161,1771308640659,-4242.0,8.657e-05,2]
[405786162,1771308640670,-500.0,8.657e-05,2]
[405786163,1771308640681,-500.0,8.657e-05,2]
[405786164,1771308640691,-500.0,8.657e-05,2]
[405786165,1771308640701,-500.0,8.657e-05,2]
[405786166,1771308640712,-500.0,8.657e-05,2]
[405786167,1771308640723,-596.0,8.657e-05,2]
[405786168,1771308640733,-500.0,8.712e-05,2]
[405786169,1771308640744,-500.0,8.712e-05,2]
[405786170,1771308640754,-466.0,8.712e-05,2]
[405786171,1771308640765,-500.0,8.712e-05,2]
[405786172,1771308640775,-500.0,8.712e-05,2]
[405786173,1771308640785,-500.0,8.712e-05,2]
[405786174,1771308640795,-872.0,8.712e-05,2]
[405786175,1771308640805,-4242.0,8.712e-05,2]
[405786176,1771308640817,-155.81655615,8.712e-05,2]
[405786177,1771308640828,-153.57378643,8.712e-05,2]
[405786178,1771308640838,-500.0,8.712e-05,2]
[405786179,1771308640852,-500.0,8.712e-05,2]
[405786180,1771308640862,-500.0,8.712e-05,2]
[405786181,1771308640872,-596.0,8.712e-05,2]
[405786182,1771308640883,-32850.4601,8.728e-05,2]
[405786183,1771308640894,-2063.88327502,8.738e-05,2]
[405786184,1771308640904,-500.0,8.767e-05,2]
[405786185,1771308640914,-500.0,8.767e-05,2]
[405786186,1771308640927,-466.0,8.767e-05,2]
[405786187,1771308640938,-500.0,8.767e-05,2]
[405786188,1771308640948,-500.0,8.767e-05,2]
[405786189,1771308640959,-500.0,8.767e-05,2]
[405786190,1771308640969,-872.0,8.767e-05,2]
[405786191,1771308640979,-4242.0,8.767e-05,2]
[405786192,1771308640991,-500.0,8.767e-05,2]
[405786193,1771308641002,-500.0,8.767e-05,2]
[405786194,1771308641012,-500.0,8.767e-05,2]
[405786195,1771308641023,-596.0,8.767e-05,2]
[405786196,1771308641037,-500.0,8.767e-05,2]
[405786197,1771308641048,-500.0,8.822e-05,2]
[405786198,1771308641059,-500.0,8.822e-05,2]
[405786199,1771308641070,-466.0,8.822e-05,2]
[405786200,1771308641081,-500.0,8.822e-05,2]
[405786201,1771308641092,-500.0,8.822e-05,2]
[405786202,1771308641102,-500.0,8.822e-05,2]
[405786203,1771308641113,-872.0,8.822e-05,2]
[405786204,1771308641123,-4242.0,8.822e-05,2]
[405786205,1771308641135,-500.0,8.822e-05,2]
[405786206,1771308641145,-361.9355564,8.822e-05,2]
[405786207,1771308641155,-500.0,8.822e-05,2]
[405786208,1771308641166,-596.0,8.822e-05,2]
[405786209,1771308641177,-500.0,8.877e-05,2]
[405786210,1771308641187,-350.0,8.877e-05,2]
[405786211,1771308641198,-466.0,8.877e-05,2]
[405786212,1771308641209,-500.0,8.877e-05,2]
[405786213,1771308641219,-224.65460803,8.877e-05,2]
[405786214,1771308641233,-500.0,8.877e-05,2]
[405786215,1771308641243,-872.0,8.877e-05,2]
[405786216,1771308641253,-4242.0,8.877e-05,2]
[405786217,1771308641265,-500.0,8.877e-05,2]
[405786218,1771308641276,-500.0,8.877e-05,2]
[405786219,1771308641287,-596.0,8.877e-05,2]
[405786220,1771308641298,-500.0,8.931e-05,2]
[405786221,1771308641308,-466.0,8.931e-05,2]
[405786222,1771308641319,-500.0,8.931e-05,2]
[405786223,1771308641329,-500.0,8.931e-05,2]
[405786224,1771308641339,-872.0,8.931e-05,2]
[405786225,1771308641349,-4242.0,8.931e-05,2]
[405786226,1771308641360,-500.0,8.931e-05,2]
[405786227,1771308641370,-498.26652801,8.931e-05,2]
[405786228,1771308641381,-596.0,8.931e-05,2]
[405786229,1771308641391,-38674.68,8.963e-05,2]
[405786230,1771308641401,-500.0,8.986e-05,2]
[405786231,1771308641412,-466.0,8.986e-05,2]
[405786232,1771308641423,-500.0,8.986e-05,2]
[405786233,1771308641433,-500.0,8.986e-05,2]
[405786234,1771308641443,-872.0,8.986e-05,2]
[405786235,1771308641453,-4242.0,8.986e-05,2]
[405786236,1771308641464,-611.76249723,8.986e-05,2]
[405786237,1771308641475,-596.0,8.986e-05,2]
[405786238,1771308641485,-1600.0,8.996e-05,2]
[405786239,1771308641495,-266.33885806,9.041e-05,2]
[405786240,1771308641505,-466.0,9.041e-05,2]
[405786241,1771308641516,-500.0,9.041e-05,2]
[405786242,1771308641526,-500.0,9.041e-05,2]
[405786243,1771308641537,-872.0,9.041e-05,2]
[405786244,1771308641547,-4242.0,9.041e-05,2]
[405786245,1771308641558,-596.0,9.041e-05,2]
[405786246,1771308641568,-500.0,9.041e-05,2]
[405786247,1771308641579,-152.72,9.041e-05,2]
[405786248,1771308641589,-466.0,9.096e-05,2]
[405786249,1771308641600,-500.0,9.096e-05,2]
[405786250,1771308641610,-500.0,9.096e-05,2]
[405786251,1771308641621,-872.0,9.096e-05,2]
[405786252,1771308641631,-4242.0,9.096e-05,2]
[405786253,1771308641641,-596.0,9.096e-05,2]
[405786254,1771308641651,-466.0,9.151e-05,2]
[405786255,1771308641661,-500.0,9.151e-05,2]
[405786256,1771308641672,-500.0,9.151e-05,2]
[405786257,1771308641683,-872.0,9.151e-05,2]
[405786258,1771308641694,-4242.0,9.151e-05,2]
[405786259,1771308641704,-596.0,9.151e-05,2]
[405786260,1771308641715,-587.0,9.194e-05,2]
[405786261,1771308641724,-2351.0,9.194e-05,2]
[405786262,1771308641734,-466.0,9.205e-05,2]
[405786263,1771308641745,-481.0942881,9.205e-05,2]
[405786264,1771308641756,-500.0,9.205e-05,2]
[405786265,1771308641767,-872.0,9.205e-05,2]
[405786266,1771308641777,-4242.0,9.205e-05,2]
[405786267,1771308641787,-596.0,9.205e-05,2]
[405786268,1771308641797,-466.0,9.26e-05,2]
[405786269,1771308641808,-500.0,9.26e-05,2]
[405786270,1771308641818,-872.0,9.26e-05,2]
[405786271,1771308641827,-4242.0,9.26e-05,2]
[405786272,1771308641837,-596.0,9.26e-05,2]
[405786273,1771308641847,-466.0,9.315e-05,2]
[405786274,1771308641858,-500.0,9.315e-05,2]
[405786275,1771308641868,-872.0,9.315e-05,2]
[405786276,1771308641879,-4242.0,9.315e-05,2]
[405786277,1771308641888,-596.0,9.315e-05,2]
[405786278,1771308641898,-500.0,9.315e-05,2]
[405786279,1771308641908,-466.0,9.37e-05,2]
[405786280,1771308641918,-500.0,9.37e-05,2]
[405786281,1771308641931,-872.0,9.37e-05,2]
[405786282,1771308641941,-4242.0,9.37e-05,2]
[405786283,1771308641951,-596.0,9.37e-05,2]
[405786284,1771308641962,-466.0,9.424e-05,2]
[405786285,1771308641972,-500.0,9.424e-05,2]
[405786286,1771308641983,-872.0,9.424e-05,2]
[405786287,1771308641994,-4242.0,9.424e-05,2]
[405786288,1771308642005,-596.0,9.424e-05,2]
[405786289,1771308642015,-468.80031656,9.479e-05,2]
[405786290,1771308642025,-512.26030593,9.479e-05,2]
[405786291,1771308642035,-887.15179644,9.479e-05,2]
[405786292,1771308642046,-4242.729734,9.479e-05,2]
[405786293,1771308642055,-600.2655769,9.479e-05,2]
[405786294,1771308642065,-500.0,9.589e-05,2]
[405786295,1771308642075,-500.0,9.863e-05,2]
[405786296,1771308642085,-152.72,9.863e-05,2]
[405786297,1771308642095,-7627.483126,9.95e-05,2]
[405786302,1771308642471,-250.0,9.991e-05,2]
[405786303,1771308642482,-205.83646081,0.0001,2]
[405786304,1771308642492,-151.82749142,0.0001,2]
[405786305,1771308642502,-992.55377072,0.0001,2]
[405786306,1771308642512,-151.0,0.0001,2]
[405786307,1771308642522,-151.0,0.0001,2]
[405786308,1771308642533,-151.0,0.0001,2]
[405786309,1771308642543,-151.0,0.0001,2]
[405786310,1771308642554,-151.0,0.0001,2]
[405786311,1771308642564,-151.0,0.0001,2]
[405786312,1771308642574,-151.0,0.0001,2]
[405786314,1771308642585,-151.0,0.0001,2]
[405786316,1771308642595,-151.0,0.0001,2]
[405786317,1771308642605,-151.0,0.0001,2]
[405786318,1771308642615,-151.0,0.0001,2]
[405786319,1771308642625,-151.0,0.0001,2]
[405786320,1771308642635,-151.0,0.0001,2]
[405786321,1771308642645,-151.0,0.0001,2]
[405786322,1771308642655,-151.0,0.0001,2]
[405786323,1771308642664,-151.0,0.0001,2]
[405786324,1771308642674,-151.0,0.0001,2]
[405786325,1771308642684,-151.0,0.0001,2]
[405786326,1771308642694,-151.0,0.0001,2]
[405786327,1771308642704,-151.0,0.0001,2]
[405786328,1771308642714,-763.92788936,0.0001,2]
[405786329,1771308642724,-763.92788936,0.0001,2]
[405786330,1771308642734,-173.85722099,0.00010023,2]
[405786331,1771308642743,-823.0,0.00010113,2]
[405786332,1771308642753,-3292.0,0.00010113,2]
[405786333,1771308642763,-1600.0,0.0001012,2]
[405786334,1771308642772,-500.0,0.00010137,2]
[405786335,1771308642781,-504.47430688,0.00010411,2]
[405786336,1771308642791,-19999.99,0.00010475,2]
[405786337,1771308642800,-2823.55,0.00010475,2]
[405786338,1771308642809,-152.72,0.00010685,2]
[405786339,1771308642819,-1000.0,0.000108,2]
[405786340,1771308642829,-1551.84,0.00010959,2]
[405786341,1771308642838,-150.0,0.00010959,2]
[405786342,1771308642848,-500.0,0.00010973,2]
[405786343,1771308642858,-500.0,0.00010973,2]
[405786344,1771308642867,-502.12798245,0.00010973,2]
[405786345,1771308642877,-500.0,0.00010973,2]
[405786346,1771308642886,-500.0,0.00010973,2]
[405786347,1771308642896,-11808.51754568,0.00011099,2]
[405786348,1771308642905,-11808.51754568,0.00011099,2]
[405786349,1771308642915,-11808.51754568,0.00011099,2]
[405786350,1771308642926,-11808.51754568,0.00011099,2]
[405786351,1771308642936,-977.0,0.00011124,2]
[405786352,1771308642946,-4609.0,0.00011124,2]
[405786353,1771308642955,-1600.0,0.00011245,2]
[405786354,1771308642966,-173498.0,0.000113,2]
[405786355,1771308642976,-152.72,0.00011507,2]
[405786356,1771308642985,-4193.06,0.00011507,2]
[405786357,1771308642995,-1000.0,0.00011521,2]
[405786358,1771308643005,-1000.0,0.00011521,2]
[405786359,1771308643015,-1000.0,0.00011521,2]
[405786360,1771308643025,-1000.0,0.00011521,2]
[405786361,1771308643035,-5530.0,0.000116,3]
[405786362,1771308643045,-5530.0,0.000119,5]
[405786363,1771308643055,-30336.8,0.00012055,2]
[405786364,1771308643064,-299.80965345,0.00012068,2]
[405786365,1771308643074,-1002.39964348,0.00012068,2]
[405786366,1771308643084,-1500.0,0.00012068,2]
[405786367,1771308643094,-1500.0,0.00012068,2]
[405786368,1771308643105,-11808.51754568,0.00012139,2]
[405786369,1771308643115,-6453.0,0.00012237,2]
[405786370,1771308643125,-3826.5506893,0.00012289,2]
[405786371,1771308643135,-152.72,0.00012329,2]
[405786372,1771308643145,-1600.0,0.00012369,2]
[405786373,1771308643155,-2020.504387,0.00012437,2]
[405786374,1771308643165,-9152.979751,0.00012437,2]
[405786375,1771308643176,-368.72151799,0.00012616,2]
[405786376,1771308643186,-2000.0,0.00012616,2]
[405786377,1771308643196,-992.55377071,0.00012716,2]
[405786378,1771308643214,-227.20890354,0.00012716,2]
[405786379,1771308643228,-1000.0,0.00012799,2]
[405786380,1771308643238,-2500.0,0.00013164,2]